Cogmind - Beta 16 --- EXPLORER MODE // 2026.01.23 @ 16:14:36 Player: K.K.Y. Result: Destroyed by Y-54 Guardian with Flak Gun Performance ------------- Evolutions (0) 0 Regions Visited (4) 800 Robots Destroyed (66) 330 Value Destroyed (1822) 1822 Prototype IDs (12) 240 Alien Tech Used (0) 0 Bonus (-283) -283 TOTAL SCORE: 2909 Bonus ------- Friendly Fire -283 Cogmind --------- Core Integrity 0/250 Matter 300/300 Energy 265/265 System Corruption 0% Temperature Cool (12) Movement Core (850) Ox16 Location -7/Recycling Parts ------- > --- POWER (1) -------- Improved Ion Engine > --- PROPULSION (2) --- (None) > --- UTILITY (3) ------ Light Humpback > --- WEAPON (2) ------- Pulse Rifle > --- INVENTORY (25) --- Large Storage Unit Experimental Sensor Array Improved Terrain Scanner Authchip [R/Combat] Authchip [R/Combat] Authchip [Processor] Authchip [Processor] Authchip [Weapon] Mining Laser Multitool SUBCON Basin (Full) Peak State ------------ > --- POWER ------------ Improved Ion Engine > --- PROPULSION ------- Light Treads > --- UTILITY ---------- Improved Heat Sink Light Humpback > --- WEAPON ----------- Slug Cannon Slug Cannon > --- INVENTORY -------- Large Storage Unit Structural Scanner Experimental Sensor Array Improved Terrain Scanner Authchip [R/Combat] Authchip [R/Combat] Authchip [Processor] Authchip [Processor] Authchip [Weapon] Mining Laser SUBCON Basin [Rating: 37] Favorites ----------- Power Improved Ion Engine Engine Improved Ion Engine Propulsion Light Treads Treads Light Treads Utility Large Storage Unit Device Structural Scanner Storage Large Storage Unit Hackware Authchip [Storage] Weapon Slug Cannon Energy Gun Beamcaster Energy Cannon Beam Cannon Ballistic Gun Autogun Ballistic Cannon Slug Cannon Special Weapon Mining Laser Build | -11 -10 -10 -10 -7 ------- Run | Yrd Mat Min Sub Rec Slots Evolved 1 | . 1 . . . Power . | . . . . . Propulsion . | . . . . . Utility 1 | . 1 . . . Weapon . | . . . . . Parts Attached 36 | 6 15 1 12 2 Power 6 | 1 3 . 2 . Engine 6 | 1 3 . 2 . Core . | . . . . . Reactor . | . . . . . Propulsion 8 | 2 2 1 3 . Treads 8 | 2 2 1 3 . Leg . | . . . . . Wheel . | . . . . . Hover . | . . . . . Flight . | . . . . . Utility 7 | 1 3 . 2 1 Device 3 | . 2 . 1 . Storage 3 | 1 1 . 1 . Processor . | . . . . . Hackware 1 | . . . . 1 Protection . | . . . . . Artifact . | . . . . . Weapon 15 | 2 7 . 5 1 Energy Gun 5 | 2 . . 2 1 Energy Cannon 1 | . . . 1 . Ballistic Gun 6 | . 6 . . . Ballistic Cannon 2 | . . . 2 . Launcher . | . . . . . Special Weapon 1 | . 1 . . . Impact Weapon . | . . . . . Slashing Weapon . | . . . . . Piercing Weapon . | . . . . . Special Melee Weapon . | . . . . . Unidentified Prototypes . | . . . . . Parts Lost 10 | . 1 . 5 4 Power 1 | . . . 1 . Propulsion 2 | . . . 1 1 Utility 2 | . . . 1 1 Weapon 5 | . 1 . 2 2 Highest Loss Streak 2 | . 1 . 2 2 To Critical Strikes . | . . . . . Average Backups 11 | 1 12 15 11 10 Power . | . 1 1 . . Propulsion . | . . . . . Utility 8 | . 6 7 8 8 Weapon 2 | . 4 6 2 1 Tool/Special . | . . . . . Unused Backups 16 | . 5 3 . 8 Power . | . . . . . Propulsion . | . . . . . Utility 9 | . 1 1 . 7 Weapon 6 | . 4 2 . . Tool/Special 1 | . . . . 1 Average Slot Usage (%) 79 | . 91 100 82 44 Engine 10 | . 12 12 9 12 Treads 15 | . 25 25 16 1 Device 16 | . 17 25 18 2 Storage 12 | . 12 12 12 12 Energy Gun 2 | . 4 . 2 . Ballistic Gun 6 | . 19 25 1 . Ballistic Cannon 14 | . . . 20 14 Peak Build Rating 37 | 6 15 15 37 37 Average Rating 24 | 4 12 14 27 30 On Entrance 14 | . 6 14 15 37 Avg Prop Armor Cover (%) . | . . . . . Naked Turns . | . . . . . Heaviest Build 62 | 19 35 35 62 62 Greatest Support 40 | 40 40 40 40 20 Greatest Overweight (x) 20 | . . . 3 20 Average Overweight (x) 1 | . . . 1 14 Largest Inventory Capacity 25 | 10 15 15 25 25 Average Capacity 19 | 8 13 15 19 25 Most Carried 25 | 5 15 15 25 25 Average Carried 18 | 1 12 14 19 25 Final Capacity 25 | 10 15 15 25 25 Final Carried 25 | 2 15 15 25 25 Class Distribution -------------------- 86% | Hacker-Mutant 13% | Commander-Mutant Dominant Class ---------------- Hacker-Mutant | -10/Materials Hacker-Mutant | -10/Mines Hacker-Mutant | -10/Subcaves Commander-Mutant | -7/Recycling Resources | -11 -10 -10 -10 -7 ----------- Run | Yrd Mat Min Sub Rec Matter Collected 1798 | 160 412 192 940 94 Remotely . | . . . . . Salvage Created 2157 | 148 971 351 512 175 Parts 131 | 10 56 23 36 6 Haulers Intercepted 2 | . 2 . . . Recyclers Shooed . | . . . . . Parts Field Recycled . | . . . . . Retrieved Matter . | . . . . . Parts Self-Destructed . | . . . . . Prevented . | . . . . . Parts Restored . | . . . . . Kills | -11 -10 -10 -10 -7 ------- Run | Yrd Mat Min Sub Rec Combat Hostiles Destroyed 46 | . 15 5 21 5 Guns 27 | . 14 5 8 . Cannons 18 | . . . 13 5 Classes Destroyed 14 | 2 7 1 3 1 Worker 3 | . 2 1 . . Builder 4 | . 4 . . . Tunneler 2 | 2 . . . . Hauler 2 | . 2 . . . Recycler 3 | 1 1 1 . . Mechanic 1 | . 1 . . . Turret 2 | . . . 2 . Watcher 2 | . 2 . . . Swarmer 8 | . 4 2 2 . Grunt 15 | . 11 2 . 2 Sentry 4 | . . 1 1 2 Hunter 1 | . . . . 1 Artisan 2 | . . . 2 . Subdweller 18 | . . . 18 . Thug 1 | . . 1 . . Best Kill Streak 9 | 2 9 2 4 3 Combat Bots Only 4 | . 4 2 4 3 Max Kills in Single Turn 1 | 1 1 1 1 1 Gunslinging . | . . . . . Exploded . | . . . . . Melee . | . . . . . Uniques/NPCs Destroyed . | . . . . . Combat | -11 -10 -10 -10 -7 -------- Run | Yrd Mat Min Sub Rec Hostile Shots Fired 336 | . 67 27 125 117 Missed 104 | . 20 8 43 33 Hits 232 | . 47 19 82 84 Projectile 232 | . 47 19 82 84 Critical Strikes 4 | . . 1 3 . Damage Taken 1837 | . 324 145 930 438 Core 251 | . 45 . 122 84 Absorbed by Shields . | . . . . . Ignored by Resistances 1152 | . 216 100 537 299 Core Remaining (%) 100 | 100 . . . . Volleys Fired 191 | 3 63 19 97 9 Largest 2 | 2 2 2 2 2 Hottest 123 | 80 123 46 98 80 Shots Fired 339 | 6 106 38 175 14 Gun 201 | 6 105 38 52 . Cannon 137 | . . . 123 14 Launcher . | . . . . . Special 1 | . 1 . . . Kinetic 248 | . 48 38 148 14 Thermal 28 | . 1 . 27 . Explosive . | . . . . . Electromagnetic 63 | 6 57 . . . Robot Hit Streak 42 | 5 34 13 42 18 Robot Miss Streak 3 | . 3 1 1 . Penetration Max 1 | . . . 1 . Secondary Targets 4 | . 3 1 . . Max Gunslinging Chain 1 | . 1 1 . . Autonomous 6 | . . . 6 . Shots Hit Robots 243 | 5 81 29 115 13 Core Hits 100 | 4 36 14 40 6 Critical Kills 7 | . . . 5 2 Critical Parts Destroyed 5 | . 1 . 3 1 Critical Strikes 19 | . 1 . 15 3 Burn 2 | . . . 2 . Destroy 17 | . 1 . 13 3 Melee Attacks . | . . . . . Impact . | . . . . . Slashing . | . . . . . Piercing . | . . . . . Sneak Attacks . | . . . . . Combat Hostiles . | . . . . . Follow-up Attacks . | . . . . . Damage Inflicted 4869 | 77 1351 460 2564 417 Guns 2460 | 77 1217 456 710 . Cannons 2271 | . . . 1854 417 Explosions 134 | . 134 . . . Melee . | . . . . . Ramming 4 | . . 4 . . Kinetic 3631 | . 636 456 2122 417 Thermal 576 | . 134 . 442 . Explosive . | . . . . . Electromagnetic 658 | 77 581 . . . Impact . | . . . . . Slashing . | . . . . . Piercing . | . . . . . Highest Corruption . | . . . . . Average Corruption . | . . . . . Corruption Purged . | . . . . . Corruption Blocked . | . . . . . Overload Shots . | . . . . . Overflow Damage 38 | . . . 29 9 Projectiles 38 | . . . 29 9 Explosions . | . . . . . Melee . | . . . . . Knockbacks 11 | . . . 10 1 Impact . | . . . . . Kinetic 11 | . . . 10 1 Secondary . | . . . . . Self-Inflicted Damage 22 | . 22 . . . Shots 1 | . 1 . . . Rammed 1 | . . 1 . . Targets Rammed 1 | . . 1 . . Kicked . | . . . . . Crushed . | . . . . . Highest Temperature 324 | 18 324 49 192 22 Average Temperature 70 | 12 91 13 69 10 Received Heat Transfer 879 | . 198 99 420 162 Effects 3 | . 3 . . . Energy Bleed 3 | . 3 . . . Siege Activations . | . . . . . Martial Activations . | . . . . . Shielding Activations . | . . . . . Robots Disrupted . | . . . . . Combat Hostiles . | . . . . . Robots Corrupted 2 | . 2 . . . Combat Hostiles 1 | . 1 . . . Parts Fried 6 | 1 5 . . . Impact Corruptions . | . . . . . Robots Melted . | . . . . . Combat Hostiles . | . . . . . Parts Melted 3 | . . . 3 . Heat Transferred 1302 | . 150 . 1152 . Parts Sabotaged . | . . . . . Parts Stolen . | . . . . . Parts Stripped . | . . . . . Power Chain Reactions 2 | . 2 . . . Alert | -11 -10 -10 -10 -7 ------- Run | Yrd Mat Min Sub Rec Maximum Alert Level . | . . . . . Low Security (%) 100 | 100 100 100 . 100 Level 1 . | . . . . . Level 2 . | . . . . . Level 3 . | . . . . . Level 4 . | . . . . . Level 5 . | . . . . . High Security . | . . . . . Max Security . | . . . . . Peak Influence 86 | 10 86 54 . 35 Initial . | . . . . . Average 6 | 2 16 3 . 1 Influence Increases 981 | 15 504 134 220 108 Destroy 0b10 Robot/C 600 | . 300 100 100 100 Destroy 0b10 Robot/NC 85 | 15 60 10 . . Destroy Leader 98 | . 78 20 . . Successful Hack 57 | . 50 . . 7 Disable Machine 12 | . 8 4 . . Destroy Structure 9 | . 8 . . 1 Lose Combat Pursuer 120 | . . . 120 . Influence Decreases 981 | 15 504 134 220 108 Time Decay 961 | 15 494 134 220 98 Lost Part 20 | . 10 . . 10 Squads Dispatched 3 | . 3 . . . Investigation 3 | . 3 . . . Extermination . | . . . . . Reinforcement . | . . . . . Assault . | . . . . . Garrison . | . . . . . Intercept . | . . . . . Searches Triggered . | . . . . . Construction Impeded . | . . . . . Haulers Reinforced . | . . . . . Active Scanning Responses . | . . . . . Cargo Convoy Interrupts . | . . . . . Stealth | -11 -10 -10 -10 -7 --------- Run | Yrd Mat Min Sub Rec Distress Signals 1 | . 1 . . . Communications Jammed . | . . . . . Distress Signals . | . . . . . Times Spotted 58 | . 21 6 25 6 Peak Tracking Total 6 | . 3 2 6 3 Tactical Retreats 2 | . . . 2 . Traps | -11 -10 -10 -10 -7 ------- Run | Yrd Mat Min Sub Rec Traps Triggered 3 | . 1 . 2 . Indirectly . | . . . . . Trap Hack Attempts . | . . . . . Triggered . | . . . . . Disarmed . | . . . . . Reprogrammed . | . . . . . Reused . | . . . . . Traps Extracted . | . . . . . Installed . | . . . . . Triggered . | . . . . . Machines | -11 -10 -10 -10 -7 ---------- Run | Yrd Mat Min Sub Rec Machines Disabled 4 | . 2 1 1 . Max in Single Turn 1 | . 1 1 1 . Machines Repaired . | . . . . . Machines Dismantled . | . . . . . Machines Sabotaged . | . . . . . Overloaded Fab Kills . | . . . . . Hacking | -11 -10 -10 -10 -7 --------- Run | Yrd Mat Min Sub Rec Machines Accessed 14 | . 6 . 3 5 Terminals 8 | . 5 . . 3 Fabricators . | . . . . . Repair Stations . | . . . . . Recycling Units 3 | . 1 . . 2 Scanalyzers . | . . . . . Garrison Access . | . . . . . Total Hacks 37 | . 23 . 4 10 Successful 25 | . 17 . 4 4 Failed 12 | . 6 . . 6 Catastrophic 1 | . . . . 1 Database Lockouts . | . . . . . Manual 26 | . 22 . . 4 Terminals 27 | . 21 . . 6 Fabricators . | . . . . . Repair Stations . | . . . . . Recycling Units 6 | . 2 . . 4 Scanalyzers . | . . . . . Garrison Access . | . . . . . Terminal Hacks 21 | . 16 . 4 1 Record 1 | . . . 1 . Part Schematic 13 | . 12 . . 1 Robot Schematic 4 | . 4 . . . Open Door 1 | . . . 1 . Proto ID Catalog 1 | . . . 1 . Release Object 1 | . . . 1 . Fabricator Hacks . | . . . . . Repair Station Hacks . | . . . . . Recycling Unit Hacks 2 | . 1 . . 1 Retrieve Components 2 | . 1 . . 1 Scanalyzer . | . . . . . Garrison Access Hacks . | . . . . . Unauthorized Hacks 2 | . . . . 2 Terminals 2 | . . . . 2 Botnet 2 | . . . . 2 Fabricators . | . . . . . Repair Stations . | . . . . . Recycling Units . | . . . . . Scanalyzers . | . . . . . Garrison Access . | . . . . . Data Cores Recovered . | . . . . . Used . | . . . . . Hacking Detections 9 | . 5 . . 4 Full Trace Events 8 | . 5 . . 3 Feedback Events . | . . . . . Feedback Blocked . | . . . . . Robot Schematics Acquired 3 | . 3 . . . Robots Built . | . . . . . Authchips . | . . . . . Time . | . . . . . Total Robot Build Rating . | . . . . . Part Schematics Acquired 9 | . 8 . . 1 Parts Built . | . . . . . Authchips . | . . . . . Time . | . . . . . Total Part Build Rating . | . . . . . Part Studies Acquired . | . . . . . Parts Repaired . | . . . . . Time . | . . . . . Parts Recycled . | . . . . . Recycled Matter . | . . . . . Retrieved Matter . | . . . . . Retrieved Components 12 | . 10 . . 2 Parts Scanalyzed . | . . . . . Part Schematics Acquired . | . . . . . Parts Damaged . | . . . . . Bothacking | -11 -10 -10 -10 -7 ------------ Run | Yrd Mat Min Sub Rec Used RIF Installer . | . . . . . Robots Hacked . | . . . . . Non-combat . | . . . . . Combat . | . . . . . Robot Hacks Applied . | . . . . . Relay Couplers Released . | . . . . . Fabnet Peak Effective % . | . . . . . Robots Rewired 6 | . . . . 6 Allies Hacked . | . . . . . Hacks Repelled . | . . . . . Allies | -11 -10 -10 -10 -7 -------- Run | Yrd Mat Min Sub Rec Total Allies 6 | . . . . 6 Largest Group 6 | . . . . 6 Highest-Rated Group 131 | . . . . 131 Highest-Rated Ally 40 | . . . . 40 Total Orders . | . . . . . Ally Attacks 4 | . . . . 4 Total Damage 118 | . . . . 118 Kills . | . . . . . Allies Corrupted . | . . . . . Allies Melted . | . . . . . Intel | -11 -10 -10 -10 -7 ------- Run | Yrd Mat Min Sub Rec Active Infowar (turns) 5398 | . 1058 1194 3146 . Sensors 5101 | . 863 1194 3044 . Structural 5398 | . 1058 1194 3146 . Robot Analysis Total . | . . . . . Derelict Logs Recovered 2 | . . 1 1 . Drone Launches . | . . . . . Drone Recoveries . | . . . . . Exploration | -11 -10 -10 -10 -7 ------------- Run | Yrd Mat Min Sub Rec Turns Passed 10567 | 64 1372 1194 6055 1882 Spaces Moved 3751 | 36 713 687 2086 229 Core 195 | 18 . . . 177 Treads 3556 | 18 713 687 2086 52 Legs . | . . . . . Wheels . | . . . . . Hover . | . . . . . Flight . | . . . . . Fastest Speed 50 | 50 160 160 160 400 Average Speed 253 | 105 160 160 259 795 Slowest Speed 1050 | 160 160 160 400 1050 Overloaded Moves . | . . . . . Propulsion Burnouts . | . . . . . Robots Hopped . | . . . . . Potential Cave-ins . | . . . . . Cave-ins Triggered . | . . . . . Exploration Rate (%) 67 | 4 98 99 98 36 Regions Visited 4 Branch Regions 3 Pre-discovered Areas 1 | . . . 1 . Known Exits Taken 4 | 1 1 1 1 . Unknown Exits Taken . | . . . . . Scrap Searched 15 | . . . 15 . Spaces Dug 2 | . . . 2 . Terrain Destroyed 20 | . 7 . 13 . Melee . | . . . . . Projectile 13 | . . . 13 . AOE 7 | . 7 . . . Terrain Rammed . | . . . . . Walls Destroyed . | . . . . . Machines Disabled . | . . . . . Actions | -11 -10 -10 -10 -7 --------- Run | Yrd Mat Min Sub Rec Total 4503 | 56 850 754 2566 277 Wait 424 | 5 12 40 352 15 Move 3747 | 35 712 686 2085 229 Hop . | . . . . . Pick Up 43 | 7 27 3 6 . Fast Attach 7 | 1 4 . . 2 Attach 11 | 5 1 . 5 . Detach 4 | . 1 . 2 1 Swap 20 | . 10 1 9 . Drop 34 | . 20 4 10 . Fire 191 | 3 63 19 97 9 Melee . | . . . . . Ram . | . . . . . Kick . | . . . . . Crush 1 | . . 1 . . Escape Stasis . | . . . . . Rewire 21 | . . . . 21 Trap . | . . . . . Miscellaneous . | . . . . . Route ------- -11/Scrapyard -10/Materials (discovered 5 exits: *Mat x3 / *Min / *Sub) -10/Mines (discovered 4 exits: *Mat x2 / Exi / *Sub) -10/Subcaves (discovered 3 exits: *Mat x2 / *Rec) -7/Recycling (discovered 1 exit: *Fac) History --------- Turn | Location | Event 6 | -11/Scrapyard | Identified exit to Materials 6 | -11/Scrapyard | Discovered exit to Materials (range 15) 65 | -11/Scrapyard | Entered Materials 65 | -10/Materials | Evolved 1 slot: Utility x1 234 | -10/Materials | Identified exit to Mines 234 | -10/Materials | Discovered exit to Mines (range 7) 313 | -10/Materials | Build established: Hacker-Mutant 775 | -10/Materials | Identified exit to Materials 775 | -10/Materials | Discovered exit to Materials (range 16) 1061 | -10/Materials | Discovered exit to Materials (range 16) 1216 | -10/Materials | Discovered exit to Materials (range 4) 1348 | -10/Materials | Identified exit to Subcaves 1348 | -10/Materials | Discovered exit to Subcaves (range 8) 1437 | -10/Materials | Entered Mines 1487 | -10/Mines | Found a Scrap Suit stashed away for nefarious purposes 1532 | -10/Mines | Found a damaged Exp. Sensor Array with a note attached 1536 | -10/Mines | Found Prototype Device 1598 | -10/Mines | Learned Materials stockpile data 1724 | -10/Mines | Discovered exit to Subcaves (range 11) 1783 | -10/Mines | Discovered exit to Materials (range 8) 2101 | -10/Mines | Joined a pair of Derelicts in attacking an 0b10 outpost 2359 | -10/Mines | Deemed a non-threat by the Exiles lab entrance 2359 | -10/Mines | Identified exit to Exiles 2359 | -10/Mines | Discovered exit to Exiles (range 6) 2405 | -10/Mines | Discovered exit to Materials (range 6) 2631 | -10/Mines | Entered Subcaves 2695 | -10/Subcaves | Identified exit to Recycling 2695 | -10/Subcaves | Discovered exit to Recycling (range 15) 2966 | -10/Subcaves | Ambushed by Subdweller buried in earth 3098 | -10/Subcaves | Shifting Twisted Machinery released Sub. Machine Gun 3108 | -10/Subcaves | Shifting Twisted Machinery released Sub. Shrapnel Launcher 4128 | -10/Subcaves | Core integrity fell below 50% 4180 | -10/Subcaves | Identified exit to Materials 4180 | -10/Subcaves | Discovered exit to Materials (range 5) 4210 | -10/Subcaves | Shifting Twisted Machinery released Battle Rifle 4223 | -10/Subcaves | Shifting Twisted Machinery released Riot Gun 4658 | -10/Subcaves | Ambushed by angry Subdweller bent on revenge 4892 | -10/Subcaves | A swath of the cavern ceiling suddenly collapsed 5560 | -10/Subcaves | Visited 4L-MR0's lab 5793 | -10/Subcaves | Found SUBCON Basin 6158 | -10/Subcaves | Discovered exit to Materials (range 11) 6762 | -10/Subcaves | Learned location of Zion (-6) 8686 | -10/Subcaves | Entered Recycling 8909 | -7/Recycling | Core integrity fell below 20% 9483 | -7/Recycling | Build established: Commander-Mutant 10356 | -7/Recycling | Identified exit to Factory 10356 | -7/Recycling | Discovered exit to Factory (range 12) 10568 | -7/Recycling | Destroyed by Y-54 Guardian with Flak Gun Last Messages --------------- >>Trojan(Botnet) Trojan loaded successfully. Testing... Terminal linked with 1 system. Awaiting botnet instructions. >>Schematic(Imp. Hacking Suite) Downloading schematic... Imp. Hacking Suite Rating: 5 Schematic downloaded. 10156_ Acquired Authchip [Storage]. 10194_ Discarded Authchip [Storage]. 10356_ EXIT=FOUND: FACTORY 10437_ Acquired Pulse Rifle. 10448_ Acquired 20 matter. 10557_ Y-54 Guardian springs to life. 10558_ Slug Cannon destroyed. 10560_ Slug penetrates Wall. 10565_ Guardian 4a destroyed. 10565_ Slug penetrates Wall. Map ----- +----------------------------------------------------+ | ????????????????????????#####+## """"" #? | | ????????????????????????? """"" #? | | ????????????????????????##+##+##+# """ ## | | ????????????????????????# ! # #! | | ????????????????????????# + # | | ????????????????????????# ##### """ # | | ????????????????????????# ! #???# """"" # | | ??????????????????????#?# #???# """"" / | | ??????????????????????# # #???# """"" #] | | ??????????????????????# # ! #???# """ # | | ??????????????????????# + #???# # | | ??????????????????????# # ! #???# ## | | ??????????????????????#?# ! ##### | | ????????????????????????# !+ | | ??????????????????????#?# ##############+## | | ????????????????????### # #???????????# | | ??????????????????# + !#???????????# | | ??????????????????# ##### ! #???????????# """ | | ????????????????????????# !#???????????# """ | | ????????????????????????# #???????????# """ | | ????????????????????????# #???????????# | | ????????????????????????######+###???????????# | | ???????????????????????????# ###########?# | | ????????????????????????#### #?##### | | ????????????????????????#ghg < #?????# | | ????????????????????????#@## #?????# | | ????????????????????????#%## ##% ######?????? | | ????????????????????????#Y#########[! #??????????? | | ???????????????????????? #???????#####??????????? | | ????????????????????????# #??????????????????????? | | ????????????????????????# #??????????????????????? | | ????????????????????????# #??????????????????????? | | ????????????????????????# #??????????????????????? | | ????????????????????????? ???????????????????????? | | ?????????????????????????#???????????????????????? | | ?????????????????????????????????????????????????? | | ?????????????????????????????????????????????????? | | ?????????????????????????????????????????????????? | | ?????????????????????????????????????????????????? | | | | | | | | | | | | | | | | | | | | | | | +----------------------------------------------------+ Best States ------------- Heat Dissipation 39 Energy Generation 15 Energy Capacity 265 Matter Stores 300 Matter Capacity 300 Sight Range 16 Robot Scan Range 14 Terrain Scan Density 10 Resistance: KI 35 Resistance: TH 35 Resistance: EX 35 Resistance: EM 35 Resistance: I 35 Resistance: S 35 Resistance: P 35 Evasion (%) 50 Recoil Reduction 2 Offensive Hacking 20 Authchip Count 6 Item Schematics ----------------- Structural Scanner | -10/Materials | Hacked Huge Storage Unit | -10/Materials | Hacked Sml. Storage Unit | -10/Materials | Hacked Lgt. Treads | -10/Materials | Hacked Hcp. Storage Unit | -10/Materials | Hacked Datajack | -10/Materials | Hacked Signal Interpreter | -10/Materials | Hacked Cargo Storage Unit | -10/Materials | Hacked Imp. Hacking Suite | -7/Recycling | Hacked Robot Schematics ------------------ G-34 Mercenary | -10/Materials | Hacked S-10 Pest | -10/Materials | Hacked W-16 Scout | -10/Materials | Hacked Fabricated ------------ Nothing Repaired ---------- Nothing Studied --------- None Alien Tech Used ----------------- None Achievements -------------- None Challenges ------------ None Game ------ Seed EfficiencySpectralSink Manual? 0 Play Time 00:29:01 Cumulative 308.2 hours Start 2026.01.23 @ 15:48:24 End 2026.01.23 @ 16:14:36 Sessions 1 Manual Loads 0 Difficulty Explorer Special Mode None Game No. 478 Rogue 0 Adventurer 0 Explorer 478 Win Type - Total 0 Types 0/0/0/0/0/0/0/0/0/0 Lore% 76 Gallery% 70 Achievement% 56 Wizard Run 0 Options --------- Layout 1 ASCII 0 Keyboard 0 Movement Mouse Keybinds 1 Fullscreen 1 Font 24/Smallcaps Map View 50x35 Zoom Use 0% Tactical HUD 1 Map Filters NONE Filters NONE Steam 1 RUN: dbfe1663-5ce4-4e5a-8f86-949ac71ce54a